fUSD/lending_fUSD_20240518
["ID","MTS","AMOUNT","RATE_DAILY","PERIOD"]
[327439288,1716076253144,-500.0,0.00027671,2]
[327439289,1716076253153,-574.44,0.00027671,2]
[327439290,1716076253163,-500.0,0.00027671,2]
[327439291,1716076253172,-6322.39,0.00027671,2]
[327439292,1716076253181,-816.55,0.00027671,2]
[327439293,1716076253190,-500.0,0.00027671,2]
[327439294,1716076253200,-500.0,0.00027671,2]
[327439295,1716076253210,-2482.67,0.00027671,2]
[327439296,1716076253219,-458.23137772,0.00027671,2]
[327439297,1716076253229,-500.0,0.00027671,2]
[327439298,1716076253239,-500.0,0.00027671,2]
[327439299,1716076253248,-1740.46,0.00027671,2]
[327439300,1716076253258,-686.26,0.00027671,2]
[327439301,1716076253268,-500.0,0.00027671,2]
[327439302,1716076253278,-500.0,0.00027671,2]
[327439303,1716076253287,-500.0,0.00027671,2]
[327439304,1716076253297,-500.0,0.00027671,2]
[327439305,1716076253306,-1488.89,0.00027671,2]
[327439306,1716076253315,-500.0,0.00027671,2]
[327439307,1716076253324,-423.36,0.00027671,2]
[327439308,1716076253334,-501.31,0.00027671,2]
[327439309,1716076253343,-800.08,0.00027671,2]
[327439310,1716076253352,-500.0,0.00027671,2]
[327439311,1716076253362,-500.0,0.00027671,2]
[327439312,1716076253371,-3022.52,0.00027671,2]
[327439313,1716076253380,-500.0,0.00027671,2]
[327439314,1716076253390,-151.0,0.00027671,7]
[327439315,1716076253399,-2085.94,0.00027671,2]
[327439316,1716076253408,-608.93129614,0.00027671,2]
[327439317,1716076253417,-500.0,0.00027671,2]
[327439318,1716076253427,-500.0,0.00027671,2]
[327439319,1716076253437,-151.0,0.00027671,7]
[327439320,1716076253447,-983.23,0.00027671,2]
[327439321,1716076253457,-1431.68,0.00027671,2]
[327439322,1716076253467,-151.0,0.00027671,7]
[327439323,1716076253477,-1168.3,0.00027671,2]
[327439324,1716076253487,-812.45,0.00027671,2]
[327439325,1716076253496,-150.0,0.00027671,2]
[327439326,1716076253505,-500.0,0.00027671,2]
[327439327,1716076253515,-500.0,0.00027671,2]
[327439328,1716076253526,-500.0,0.00027671,2]
[327439329,1716076253536,-500.0,0.00027671,2]
[327439330,1716076253546,-715.93,0.00027671,2]
[327439331,1716076253556,-679.86,0.00027671,2]
[327439332,1716076253565,-500.0,0.00027671,2]
[327439333,1716076253575,-11414.26,0.00027671,2]
[327439334,1716076253584,-6827.48,0.00027671,2]
[327439335,1716076253593,-500.0,0.00027671,2]
[327439336,1716076253603,-690.27,0.00027671,2]
[327439337,1716076253612,-500.0,0.00027671,2]
[327439338,1716076253622,-3755.89,0.00027671,2]
[327439339,1716076253631,-500.0,0.00027671,2]
[327439340,1716076253641,-643.52,0.00027671,2]
[327439341,1716076253650,-566.39,0.00027671,2]
[327439342,1716076253659,-2004.53,0.00027671,2]
[327439343,1716076253669,-500.0,0.00027671,2]
[327439344,1716076253738,-626.51,0.00027671,2]
[327439345,1716076253747,-500.0,0.00027671,2]
[327439346,1716076253757,-8230.38,0.00027671,2]
[327439347,1716076253767,-151.0,0.00027671,7]
[327439348,1716076253777,-500.0,0.00027671,2]
[327439349,1716076253786,-1002.07,0.00027671,2]
[327439350,1716076253797,-500.0,0.00027671,2]
[327439351,1716076253807,-500.0,0.00027671,2]
[327439352,1716076253817,-151.0,0.00027671,7]
[327439353,1716076253826,-500.0,0.00027671,2]
[327439354,1716076253836,-610.33,0.00027671,2]
[327439355,1716076253846,-151.0,0.00027671,7]
[327439356,1716076253855,-500.0,0.00027671,2]
[327439357,1716076253865,-500.0,0.00027671,2]
[327439358,1716076253874,-500.0,0.00027671,2]
[327439359,1716076253883,-500.0,0.00027671,2]
[327439360,1716076253893,-636.13,0.00027671,2]
[327439361,1716076253903,-151.0,0.00027671,7]
[327439362,1716076253912,-500.0,0.00027671,2]
[327439363,1716076253922,-500.0,0.00027671,2]
[327439364,1716076253931,-151.0,0.00027671,7]
[327439365,1716076253941,-1099.68,0.00027671,2]
[327439366,1716076253950,-500.0,0.00027671,2]
[327439367,1716076253959,-621.296299,0.00027671,2]
[327439368,1716076253969,-910.75,0.00027671,2]
[327439369,1716076253978,-569.38,0.00027671,2]
[327439370,1716076253987,-223.920071,0.00027671,7]
[327439371,1716076253996,-505.71,0.00027671,2]
[327439372,1716076254006,-1024.99,0.00027671,2]
[327439373,1716076254020,-6951.21,0.00027671,2]
[327439374,1716076254030,-500.0,0.00027671,2]
[327439375,1716076254039,-223.920071,0.00027671,7]
[327439376,1716076254049,-664.05,0.00027671,2]
[327439377,1716076254059,-1562.3,0.00027671,2]
[327439378,1716076254068,-500.0,0.00027671,2]
[327439379,1716076254077,-511.61,0.00027671,2]
[327439380,1716076254087,-151.0,0.00027671,7]
[327439381,1716076254096,-500.0,0.00027671,2]
[327439382,1716076254106,-1646.39,0.00027671,2]
[327439383,1716076254115,-1050.73,0.00027671,2]
[327439384,1716076254124,-663.91,0.00027671,2]
[327439385,1716076254134,-500.0,0.00027671,2]
[327439386,1716076254144,-161.858447,0.00027671,7]
[327439387,1716076254153,-500.0,0.00027671,2]
[327439388,1716076254163,-500.0,0.00027671,2]
[327439389,1716076254172,-1230.97,0.00027671,2]
[327439390,1716076254181,-500.0,0.00027671,2]
[327439391,1716076254190,-500.0,0.00027671,2]
[327439392,1716076254200,-161.858447,0.00027671,7]
[327439393,1716076254209,-567.04,0.00027671,2]
[327439394,1716076254218,-500.0,0.00027671,2]
[327439395,1716076254228,-500.0,0.00027671,2]
[327439396,1716076254238,-613.95,0.00027671,2]
[327439397,1716076254247,-500.0,0.00027671,2]
[327439398,1716076254256,-500.0,0.00027671,2]
[327439399,1716076254266,-1513.3,0.00027671,2]
[327439400,1716076254276,-1412.24,0.00027671,2]
[327439401,1716076254285,-1776.62,0.00027671,2]
[327439402,1716076254294,-686.54,0.00027671,2]
[327439403,1716076254303,-3970.29,0.00027671,2]
[327439404,1716076254312,-705.09,0.00027671,2]
[327439405,1716076254321,-615.11,0.00027671,2]
[327439406,1716076254331,-500.0,0.00027671,2]
[327439407,1716076254340,-205.748574,0.00027671,7]
[327439408,1716076254349,-500.0,0.00027671,2]
[327439409,1716076254358,-500.0,0.00027671,2]
[327439410,1716076254367,-553.55,0.00027671,2]
[327439411,1716076254377,-500.0,0.00027671,2]
[327439412,1716076254386,-205.748574,0.00027671,7]
[327439413,1716076254395,-2233.12,0.00027671,2]
[327439414,1716076254404,-500.0,0.00027671,2]
[327439415,1716076254413,-1240.97,0.00027671,2]
[327439416,1716076254422,-943.54,0.00027671,2]
[327439417,1716076254431,-500.0,0.00027671,2]
[327439418,1716076254440,-500.0,0.00027671,2]
[327439419,1716076254450,-500.0,0.00027671,2]
[327439420,1716076254459,-2226.08,0.00027671,2]
[327439421,1716076254468,-500.0,0.00027671,2]
[327439422,1716076254477,-500.0,0.00027671,2]
[327439423,1716076254486,-513.5,0.00027671,2]
[327439424,1716076254495,-500.0,0.00027671,2]
[327439425,1716076254504,-391.39,0.00027671,2]
[327439426,1716076254513,-500.0,0.00027671,2]
[327439427,1716076254522,-1613.37,0.00027671,2]
[327439428,1716076254532,-2853.52,0.00027671,2]
[327439429,1716076254541,-500.0,0.00027671,2]
[327439430,1716076254550,-593.71,0.00027671,2]
[327439431,1716076254559,-657.18,0.00027671,2]
[327439432,1716076254568,-646.17,0.00027671,2]
[327439433,1716076254577,-1553.28,0.00027671,2]
[327439434,1716076254586,-500.0,0.00027671,2]
[327439435,1716076254595,-500.0,0.00027671,2]
[327439436,1716076254604,-504.31598883,0.00027671,2]
[327439437,1716076254613,-3867.15,0.00027671,2]
[327439438,1716076254622,-1109.16,0.00027671,2]
[327439439,1716076254631,-500.0,0.00027671,2]
[327439440,1716076254640,-500.0,0.00027671,2]
[327439441,1716076254649,-500.0,0.00027671,2]
[327439442,1716076254658,-1070.24,0.00027671,2]
[327439443,1716076254667,-1106.79,0.00027671,2]
[327439444,1716076254677,-500.0,0.00027671,2]
[327439445,1716076254685,-500.0,0.00027671,2]
[327439446,1716076254695,-500.0,0.00027671,2]
[327439447,1716076254705,-500.0,0.00027671,2]
[327439448,1716076254714,-500.0,0.00027671,2]
[327439449,1716076254723,-718.0,0.00027671,2]
[327439450,1716076254733,-885.74,0.00027671,2]
[327439451,1716076254743,-1660.16,0.00027671,2]
[327439452,1716076254753,-500.0,0.00027671,2]
[327439453,1716076254762,-624.6,0.00027671,2]
[327439454,1716076254772,-500.0,0.00027671,2]
[327439455,1716076254781,-1193.92,0.00027671,2]
[327439456,1716076254790,-500.0,0.00027671,2]
[327439457,1716076254799,-500.0,0.00027671,2]
[327439458,1716076254808,-500.0,0.00027671,2]
[327439459,1716076254817,-500.0,0.00027671,2]
[327439460,1716076254826,-3963.11,0.00027671,2]
[327439461,1716076254835,-531.29,0.00027671,2]
[327439462,1716076254844,-500.0,0.00027671,2]
[327439463,1716076254853,-500.0,0.00027671,2]
[327439464,1716076254863,-507.16,0.00027671,2]
[327439465,1716076254872,-500.0,0.00027671,2]
[327439466,1716076254881,-1461.28,0.00027671,2]
[327439467,1716076254891,-2919.72,0.00027671,2]
[327439468,1716076254900,-500.0,0.00027671,2]
[327439469,1716076254909,-500.0,0.00027671,2]
[327439470,1716076254918,-500.0,0.00027671,2]
[327439471,1716076254928,-799.75,0.00027671,2]
[327439472,1716076254937,-500.0,0.00027671,2]
[327439473,1716076254946,-1343.78,0.00027671,2]
[327439474,1716076254956,-500.0,0.00027671,2]
[327439475,1716076254966,-627.12,0.00027671,2]
[327439476,1716076254975,-500.0,0.00027671,2]
[327439477,1716076254984,-541.06,0.00027671,2]
[327439478,1716076254994,-844.53,0.00027671,2]
[327439479,1716076255004,-239.17,0.00027671,2]
[327439480,1716076255015,-500.0,0.00027671,2]
[327439481,1716076255025,-1747.16,0.00027671,2]
[327439482,1716076255034,-500.0,0.00027671,2]
[327439483,1716076255044,-500.0,0.00027671,2]
[327439484,1716076255054,-959.63,0.00027671,2]
[327439485,1716076255064,-1261.96,0.00027671,2]
[327439486,1716076255073,-500.0,0.00027671,2]
[327439487,1716076255083,-500.0,0.00027671,2]
[327439488,1716076255094,-500.0,0.00027671,2]
[327439489,1716076255103,-2598.96,0.00027671,2]
[327439490,1716076255113,-739.84,0.00027671,2]
[327439491,1716076255123,-500.0,0.00027671,2]
[327439492,1716076255132,-500.0,0.00027671,2]
[327439493,1716076255141,-500.0,0.00027671,2]
[327439494,1716076255150,-665.52,0.00027671,2]
[327439495,1716076255159,-500.0,0.00027671,2]
[327439496,1716076255169,-862.55,0.00027671,2]
[327439497,1716076255179,-1263.46,0.00027671,2]
[327439498,1716076255189,-1668.1,0.00027671,2]
[327439499,1716076255198,-500.0,0.00027671,2]
[327439500,1716076255207,-500.0,0.00027671,2]
[327439501,1716076255216,-1557.77,0.00027671,2]
[327439502,1716076255225,-500.0,0.00027671,2]
[327439503,1716076255235,-647.78,0.00027671,2]
[327439504,1716076255244,-500.0,0.00027671,2]
[327439505,1716076255254,-1981.78,0.00027671,2]
[327439506,1716076255263,-500.0,0.00027671,2]
[327439507,1716076255272,-500.0,0.00027671,2]
[327439508,1716076255281,-524.29,0.00027671,2]
[327439509,1716076255291,-613.39,0.00027671,2]
[327439510,1716076255301,-500.0,0.00027671,2]
[327439511,1716076255310,-564.35,0.00027671,2]
[327439512,1716076255320,-500.0,0.00027671,2]
[327439513,1716076255329,-500.0,0.00027671,2]
[327439514,1716076255338,-500.0,0.00027671,2]
[327439515,1716076255348,-500.0,0.00027671,2]
[327439516,1716076255357,-567.79,0.00027671,2]
[327439517,1716076255367,-500.0,0.00027671,2]
[327439518,1716076255377,-500.0,0.00027671,2]
[327439519,1716076255386,-2270.32,0.00027671,2]
[327439520,1716076255395,-500.0,0.00027671,2]
[327439521,1716076255405,-746.51,0.00027671,2]
[327439522,1716076255414,-500.0,0.00027671,2]
[327439523,1716076255424,-745.05,0.00027671,2]
[327439524,1716076255434,-500.0,0.00027671,2]
[327439525,1716076255443,-2047.56,0.00027671,2]
[327439526,1716076255452,-500.0,0.00027671,2]
[327439527,1716076255461,-500.0,0.00027671,2]
[327439528,1716076255470,-743.86,0.00027671,2]
[327439529,1716076255480,-900.26,0.00027671,2]
[327439530,1716076255489,-500.0,0.00027671,2]
[327439531,1716076255498,-500.0,0.00027671,2]
[327439532,1716076255507,-917.25,0.00027671,2]
[327439533,1716076255516,-500.0,0.00027671,2]
[327439534,1716076255526,-738.53,0.00027671,2]
[327439535,1716076255535,-3802.31,0.00027671,2]
[327439536,1716076255544,-500.0,0.00027671,2]
[327439537,1716076255553,-849.09,0.00027671,2]
[327439538,1716076255563,-500.0,0.00027671,2]
[327439539,1716076255573,-500.0,0.00027671,2]
[327439540,1716076255582,-500.0,0.00027671,2]
[327439541,1716076255591,-500.0,0.00027671,2]
[327439542,1716076255601,-500.0,0.00027671,2]
[327439543,1716076255610,-1555.07,0.00027671,2]
[327439544,1716076255619,-500.0,0.00027671,2]
[327439545,1716076255628,-1011.62,0.00027671,2]
[327439546,1716076255638,-151.0,0.00027671,7]
[327439547,1716076255647,-500.0,0.00027671,2]
[327439548,1716076255656,-856.09,0.00027671,2]
[327439549,1716076255665,-500.0,0.00027671,2]
[327439550,1716076255674,-500.0,0.00027671,2]
[327439551,1716076255683,-942.63,0.00027671,2]
[327439552,1716076255692,-500.0,0.00027671,2]
[327439553,1716076255701,-151.0,0.00027671,7]
[327439554,1716076255710,-500.0,0.00027671,2]
[327439555,1716076255720,-500.0,0.00027671,2]
[327439556,1716076255729,-500.0,0.00027671,2]
[327439557,1716076255740,-983.13,0.00027671,2]
[327439558,1716076255749,-608.79,0.00027671,2]
[327439559,1716076255758,-1572.27,0.00027671,2]
[327439560,1716076255767,-675.72,0.00027671,2]
[327439561,1716076255776,-500.0,0.00027671,2]
[327439562,1716076255785,-500.0,0.00027671,2]
[327439563,1716076255795,-501.45,0.00027671,2]
[327439564,1716076255803,-756.0,0.00027671,2]
[327439565,1716076255813,-294.08276317,0.00027671,2]
[327439566,1716076255822,-500.0,0.00027671,2]
[327439567,1716076255832,-755.82,0.00027671,2]
[327439568,1716076255842,-500.0,0.00027671,2]
[327439569,1716076255852,-157.051907,0.00027748,10]
[327439570,1716076255861,-1388.88889,0.0002777,2]
[327439571,1716076255870,-7978.39318724,0.00027823,2]
[327439572,1716076255879,-1392.08333449,0.00027848,10]
[327439573,1716076255889,-400.0,0.000279,10]
[327439574,1716076255898,-500.0,0.00027942,2]
[327439575,1716076255907,-1499.71,0.00027943,2]
[327439576,1716076255916,-500.0,0.00027943,2]
[327439577,1716076255926,-842.57,0.00027943,2]
[327439578,1716076255935,-649.04,0.00027943,2]
[327439579,1716076255944,-585.4,0.00027943,2]
[327439580,1716076255953,-500.0,0.00027943,2]
[327439581,1716076255962,-500.0,0.00027943,2]
[327439582,1716076255971,-500.0,0.00027943,2]
[327439583,1716076255980,-500.0,0.00027943,2]
[327439584,1716076255990,-500.0,0.00027943,2]
[327439585,1716076255999,-500.0,0.00027943,2]
[327439586,1716076256008,-823.82,0.00027943,2]
[327439587,1716076256018,-624.09,0.00027943,2]
[327439588,1716076256027,-500.0,0.00027943,2]
[327439589,1716076256036,-525.36,0.00027943,2]
[327439590,1716076256046,-500.0,0.00027943,2]
[327439591,1716076256055,-500.0,0.00027943,2]
[327439592,1716076256065,-500.0,0.00027943,2]
[327439593,1716076256075,-500.0,0.00027943,2]
[327439594,1716076256084,-319.57042556,0.00027943,2]
[327439595,1716076256093,-500.0,0.00027943,2]
[327439596,1716076256103,-584.81,0.00027943,2]
[327439597,1716076256112,-589.72,0.00027943,2]
[327439598,1716076256122,-500.0,0.00027943,2]
[327439599,1716076256131,-500.0,0.00027943,2]
[327439600,1716076256140,-500.0,0.00027943,2]
[327439601,1716076256150,-500.0,0.00027943,2]
[327439602,1716076256159,-513.13,0.00027943,2]
[327439603,1716076256168,-500.0,0.00027943,2]
[327439604,1716076256179,-500.0,0.00027943,2]
[327439605,1716076256188,-500.0,0.00027943,2]
[327439606,1716076256197,-500.0,0.00027943,2]
[327439607,1716076256209,-500.0,0.00027943,2]
[327439608,1716076256219,-500.0,0.00027943,2]
[327439609,1716076256228,-500.0,0.00027943,2]
[327439610,1716076256238,-500.0,0.00027943,2]
[327439611,1716076256248,-500.0,0.00027943,2]
[327439612,1716076256257,-647.21272739,0.00027943,2]
[327439613,1716076256268,-529.49,0.00027943,2]
[327439614,1716076256277,-500.0,0.00027943,2]
[327439615,1716076256287,-500.0,0.00027943,2]
[327439616,1716076256296,-540.13942857,0.00027943,2]
[327439617,1716076256306,-581.53,0.00027943,2]
[327439618,1716076256315,-502.41905554,0.00027944,2]
[327439619,1716076256326,-150.0,0.00027944,2]
[327439620,1716076256336,-396.95893781,0.00027945,2]
[327439621,1716076256346,-500.0,0.00027945,2]
[327439622,1716076256355,-500.0,0.00027945,2]
[327439623,1716076256364,-500.0,0.00027945,2]
[327439624,1716076256374,-598.38,0.00027945,2]
[327439625,1716076256384,-500.0,0.00027945,2]
[327439626,1716076256395,-518.85,0.00027945,2]
[327439627,1716076256404,-641.04185032,0.00027945,2]
[327439628,1716076256415,-500.0,0.00027945,2]
[327439629,1716076256426,-978.1,0.00027945,2]
[327439630,1716076256436,-323.97394168,0.00027945,2]
[327439631,1716076256446,-500.0,0.00027945,2]
[327439632,1716076256457,-543.23,0.00027945,2]
[327439633,1716076256467,-643.33,0.00027945,2]
[327439634,1716076256478,-500.0,0.00027945,2]
[327439635,1716076256488,-500.0,0.00027945,2]
[327439636,1716076256498,-786.29,0.00027945,2]
[327439637,1716076256508,-500.0,0.00027945,2]
[327439638,1716076256518,-281.79967827,0.00027945,2]
[327439639,1716076256527,-500.0,0.00027945,2]
[327439640,1716076256537,-500.0,0.00027945,2]
[327439641,1716076256547,-500.0,0.00027945,2]
[327439642,1716076256558,-500.0,0.00027945,2]
[327439643,1716076256567,-500.0,0.00027945,2]
[327439644,1716076256578,-500.0,0.00027945,2]
[327439645,1716076256588,-500.0,0.00027945,2]
[327439646,1716076256599,-500.0,0.00027945,2]
[327439647,1716076256608,-500.0,0.00027945,2]
[327439648,1716076256617,-500.0,0.00027945,2]
[327439649,1716076256627,-500.0,0.00027945,2]
[327439650,1716076256636,-528.43,0.00027945,2]
[327439651,1716076256647,-500.0,0.00027945,2]
[327439652,1716076256657,-500.0,0.00027945,2]
[327439653,1716076256667,-500.0,0.00027945,2]
[327439654,1716076256676,-500.0,0.00027945,2]
[327439655,1716076256686,-881.23,0.00027945,2]
[327439656,1716076256696,-500.0,0.00027945,2]
[327439657,1716076256707,-500.0,0.00027945,2]
[327439658,1716076256717,-549.13,0.00027945,2]
[327439659,1716076256727,-500.0,0.00027945,2]
[327439660,1716076256737,-502.69829817,0.00027945,2]
[327439661,1716076256747,-562.82,0.00027945,2]
[327439662,1716076256756,-200.56106226,0.00027945,2]
[327439663,1716076256767,-639.28,0.00027945,2]
[327439664,1716076256776,-500.0,0.00027945,2]
[327439665,1716076256785,-500.0,0.00027945,2]
[327439666,1716076256795,-622.61,0.00027945,2]
[327439667,1716076256804,-727.15,0.00027945,2]
[327439668,1716076256813,-588.6,0.00027945,2]
[327439669,1716076256823,-500.0,0.00027945,2]
[327439670,1716076256832,-151.0,0.00027945,7]
[327439671,1716076256842,-500.0,0.00027945,2]
[327439672,1716076256851,-500.0,0.00027945,2]
[327439673,1716076256860,-500.0,0.00027945,2]
[327439674,1716076256869,-500.0,0.00027945,2]
[327439675,1716076256879,-151.0,0.00027945,7]
[327439676,1716076256888,-151.0,0.00027945,7]
[327439677,1716076256897,-500.0,0.00027945,2]
[327439678,1716076256907,-500.0,0.00027945,2]
[327439679,1716076256916,-500.0,0.00027945,2]
[327439680,1716076256925,-500.0,0.00027945,2]
[327439681,1716076256934,-500.0,0.00027945,2]
[327439682,1716076256943,-500.0,0.00027945,2]
[327439683,1716076256953,-500.0,0.00027945,2]
[327439684,1716076256962,-151.0,0.00027945,7]
[327439685,1716076256971,-500.0,0.00027945,2]
[327439686,1716076256980,-500.0,0.00027945,2]
[327439687,1716076256990,-500.0,0.00027945,2]
[327439688,1716076256999,-151.0,0.00027945,7]
[327439689,1716076257009,-500.0,0.00027945,2]
[327439690,1716076257022,-500.0,0.00027945,2]
[327439691,1716076257032,-500.0,0.00027945,2]
[327439692,1716076257042,-151.0,0.00027945,7]
[327439693,1716076257052,-500.0,0.00027945,2]
[327439694,1716076257064,-561.63981565,0.00027945,2]
[327439695,1716076257073,-500.0,0.00027945,2]
[327439696,1716076257083,-500.0,0.00027945,2]
[327439697,1716076257094,-500.0,0.00027945,2]
[327439698,1716076257103,-500.0,0.00027945,2]
[327439699,1716076257113,-500.0,0.00027945,2]
[327439700,1716076257123,-500.0,0.00027945,2]
[327439701,1716076257132,-500.0,0.00027945,2]
[327439702,1716076257141,-623.35,0.00027945,2]
[327439703,1716076257150,-500.0,0.00027945,2]
[327439704,1716076257160,-500.0,0.00027945,2]
[327439705,1716076257169,-500.0,0.00027945,2]
[327439706,1716076257181,-500.0,0.00027945,2]
[327439707,1716076257191,-500.0,0.00027945,2]
[327439708,1716076257200,-500.0,0.00027945,2]
[327439709,1716076257210,-500.0,0.00027945,2]
[327439710,1716076257219,-500.0,0.00027945,2]
[327439711,1716076257229,-704.84,0.00027945,2]
[327439712,1716076257239,-500.0,0.00027945,2]
[327439713,1716076257249,-792.99,0.00027945,2]
[327439714,1716076257258,-646.52,0.00027945,2]
[327439715,1716076257268,-500.0,0.00027945,2]
[327439716,1716076257277,-503.43,0.00027945,2]
[327439717,1716076257286,-500.0,0.00027945,2]
[327439718,1716076257296,-916.71,0.00027945,2]
[327439719,1716076257306,-151.0,0.00027945,7]
[327439720,1716076257316,-500.0,0.00027945,2]
[327439721,1716076257325,-833.68,0.00027945,2]
[327439722,1716076257335,-500.0,0.00027945,2]
[327439723,1716076257344,-500.0,0.00027945,2]
[327439724,1716076257354,-500.0,0.00027945,2]
[327439725,1716076257364,-546.11,0.00027945,2]
[327439726,1716076257373,-500.0,0.00027945,2]
[327439727,1716076257383,-500.0,0.00027945,2]
[327439728,1716076257392,-500.0,0.00027945,2]
[327439729,1716076257401,-724.05,0.00027945,2]
[327439730,1716076257411,-500.0,0.00027945,2]
[327439731,1716076257420,-500.0,0.00027945,2]
[327439732,1716076257430,-1333.61,0.00027945,2]
[327439733,1716076257439,-500.0,0.00027945,2]
[327439734,1716076257449,-500.0,0.00027945,2]
[327439735,1716076257459,-661.81,0.00027945,2]
[327439736,1716076257469,-500.0,0.00027945,2]
[327439737,1716076257478,-500.0,0.00027945,2]
[327439738,1716076257488,-518.1,0.00027945,2]
[327439739,1716076257499,-500.0,0.00027945,2]
[327439740,1716076257508,-500.0,0.00027945,2]
[327439741,1716076257518,-500.0,0.00027945,2]
[327439742,1716076257528,-501.31,0.00027945,2]
[327439743,1716076257538,-500.0,0.00027945,2]
[327439744,1716076257547,-594.76,0.00027945,2]
[327439745,1716076257557,-500.0,0.00027945,2]
[327439746,1716076257567,-525.52933858,0.00027945,2]
[327439747,1716076257577,-500.0,0.00027945,2]
[327439748,1716076257587,-500.0,0.00027945,2]
[327439749,1716076257596,-1024.03,0.00027945,2]
[327439750,1716076257606,-560.03,0.00027945,2]
[327439751,1716076257616,-771.12,0.00027945,2]
[327439752,1716076257626,-1140.83,0.00027945,2]
[327439753,1716076257636,-994.99,0.00027945,2]
[327439754,1716076257646,-500.0,0.00027945,2]
[327439755,1716076257655,-500.0,0.00027945,2]
[327439756,1716076257665,-500.0,0.00027945,2]
[327439757,1716076257676,-887.21,0.00027945,2]
[327439758,1716076257686,-649.28,0.00027945,2]
[327439759,1716076257696,-500.0,0.00027945,2]
[327439760,1716076257705,-924.46,0.00027945,2]
[327439761,1716076257715,-641.81,0.00027945,2]
[327439762,1716076257724,-1131.14,0.00027945,2]
[327439763,1716076257734,-500.0,0.00027945,2]
[327439764,1716076257744,-500.0,0.00027945,2]
[327439765,1716076257754,-627.99,0.00027945,2]
[327439766,1716076257764,-962.91,0.00027945,2]
[327439767,1716076257774,-648.89,0.00027945,2]
[327439768,1716076257784,-500.0,0.00027945,2]
[327439769,1716076257793,-500.0,0.00027945,2]
[327439770,1716076257803,-814.72,0.00027945,2]
[327439771,1716076257813,-550.28,0.00027945,2]
[327439772,1716076257823,-852.47,0.00027945,2]
[327439773,1716076257833,-550.4,0.00027945,2]
[327439774,1716076257843,-670.64,0.00027945,2]
[327439775,1716076257853,-645.36,0.00027945,2]
[327439776,1716076257863,-500.0,0.00027945,2]
[327439777,1716076257873,-757.24,0.00027945,2]
[327439778,1716076257884,-660.17,0.00027945,2]
[327439779,1716076257893,-804.91,0.00027945,2]
[327439780,1716076257904,-500.0,0.00027945,2]
[327439781,1716076257916,-890.17,0.00027945,2]
[327439782,1716076257927,-823.19,0.00027945,2]
[327439783,1716076257939,-500.0,0.00027945,2]
[327439784,1716076257950,-937.41,0.00027945,2]
[327439785,1716076257960,-500.0,0.00027945,2]
[327439786,1716076257970,-500.0,0.00027945,2]
[327439787,1716076257979,-500.0,0.00027945,2]